[Event "*** Titled Tuesday Blitz"]
[Site "Chess.com"]
[Date "2018.12.04"]
[Round "3"]
[White "AndrBaryshpolets"]
[Black "ShadowJolteon"]
[Result "1-0"]
[WhiteElo "2569"]
[BlackElo "2410"]
[TimeControl "180+2"]
[EndTime "13:38:42 PST"]
[Termination "AndrBaryshpolets won by resignation"]

1. d4 {[%clk 0:03:01]} 1... Nf6 {[%clk 0:03:00.4]} 2. c4 {[%clk 0:03:02.6]} 2...
e6 {[%clk 0:03:01]} 3. Nf3 {[%clk 0:03:03.5]} 3... b6 {[%clk 0:03:01.7]} 4. a3
{[%clk 0:03:04.6]} 4... Bb7 {[%clk 0:03:02.3]} 5. Nc3 {[%clk 0:03:05.5]} 5... d5
{[%clk 0:03:03.4]} 6. cxd5 {[%clk 0:03:06.8]} 6... Nxd5 {[%clk 0:03:04.1]} 7.
Qc2 {[%clk 0:03:08.5]} 7... Be7 {[%clk 0:03:04]} 8. Bd2 {[%clk 0:03:09.7]} 8...
O-O {[%clk 0:03:04.2]} 9. e4 {[%clk 0:03:10.1]} 9... Nxc3 {[%clk 0:03:05.5]} 10.
Bxc3 {[%clk 0:03:12]} 10... Nd7 {[%clk 0:03:06]} 11. Rd1 {[%clk 0:03:11.7]}
11... Rc8 {[%clk 0:03:06.3]} 12. Be2 {[%clk 0:03:10.4]} 12... c5 {[%clk
0:03:05.6]} 13. d5 {[%clk 0:03:11.8]} 13... exd5 {[%clk 0:03:05.4]} 14. exd5
{[%clk 0:03:13.7]} 14... Bf6 {[%clk 0:03:06.4]} 15. O-O {[%clk 0:03:05.5]} 15...
Bxc3 {[%clk 0:02:59.2]} 16. bxc3 {[%clk 0:03:04]} 16... c4 {[%clk 0:02:54.5]}
17. a4 {[%clk 0:02:39.8]} 17... Rc5 {[%clk 0:02:33.4]} 18. d6 {[%clk 0:02:29.8]}
18... Nf6 {[%clk 0:02:26.5]} 19. Rd4 {[%clk 0:02:06.2]} 19... Bd5 {[%clk
0:02:20.9]} 20. Rfd1 {[%clk 0:01:44]} 20... Qxd6 {[%clk 0:02:12.2]} 21. Bxc4
{[%clk 0:01:35.8]} 21... Qc6 {[%clk 0:01:54.5]} 22. Ne5 {[%clk 0:01:13.4]} 22...
Qb7 {[%clk 0:01:46.7]} 23. Bxd5 {[%clk 0:01:04]} 23... Nxd5 {[%clk 0:01:15.1]}
24. Qe4 {[%clk 0:00:58.4]} 24... f5 {[%clk 0:00:13.5]} 25. Qf3 {[%clk
0:00:54.6]} 25... Rxc3 {[%clk 0:00:13.3]} 26. Qxd5+ {[%clk 0:00:52.8]} 26...
Qxd5 {[%clk 0:00:15]} 27. Rxd5 {[%clk 0:00:54.7]} 27... Ra3 {[%clk 0:00:15.5]}
28. R5d4 {[%clk 0:00:50.9]} 28... Re8 {[%clk 0:00:16.4]} 29. Nc6 {[%clk
0:00:49.2]} 29... a5 {[%clk 0:00:16]} 30. h4 {[%clk 0:00:40.8]} 30... Re2 {[%clk
0:00:16.8]} 31. Rb1 {[%clk 0:00:21.6]} 31... Raa2 {[%clk 0:00:13.9]} 32. Rf4
{[%clk 0:00:22.6]} 32... g6 {[%clk 0:00:06.4]} 33. Rxb6 {[%clk 0:00:22.7]} 33...
Re4 {[%clk 0:00:07.1]} 34. Rxe4 {[%clk 0:00:22.6]} 34... fxe4 {[%clk 0:00:09]}
35. Nxa5 {[%clk 0:00:20.1]} 35... Rxa4 {[%clk 0:00:10]} 36. Nb7 {[%clk
0:00:13.1]} 36... Kg7 {[%clk 0:00:11]} 37. Nc5 {[%clk 0:00:12.1]} 37... Rc4
{[%clk 0:00:11.3]} 38. Rc6 {[%clk 0:00:10.8]} 38... Kh6 {[%clk 0:00:10.8]} 39.
g3 {[%clk 0:00:11.6]} 39... Kh5 {[%clk 0:00:09.2]} 40. Kf1 {[%clk 0:00:12.5]}
40... Kg4 {[%clk 0:00:09.9]} 41. Ke2 {[%clk 0:00:14.1]} 41... Rc2+ {[%clk
0:00:10.5]} 42. Ke3 {[%clk 0:00:15.4]} 42... h5 {[%clk 0:00:09.1]} 43. Rxg6+
{[%clk 0:00:14.9]} 43... Kf5 {[%clk 0:00:09.5]} 44. Rg5+ {[%clk 0:00:16.3]}
44... Kf6 {[%clk 0:00:10.7]} 45. Nxe4+ {[%clk 0:00:18]} 45... Ke6 {[%clk
0:00:11.2]} 46. Kf4 {[%clk 0:00:19.8]} 46... Ra2 {[%clk 0:00:12.4]} 47. f3
{[%clk 0:00:21.2]} 47... Ra4 {[%clk 0:00:13.3]} 48. Rxh5 {[%clk 0:00:22.6]}
48... Ra3 {[%clk 0:00:14]} 49. g4 {[%clk 0:00:24.1]} 49... Ra4 {[%clk
0:00:15.9]} 50. Rh6+ {[%clk 0:00:25.3]} 50... Kf7 {[%clk 0:00:16.7]} 51. h5
{[%clk 0:00:27]} 51... Rb4 {[%clk 0:00:17.6]} 52. Rg6 {[%clk 0:00:28.4]} 52...
Kf8 {[%clk 0:00:18.5]} 53. h6 {[%clk 0:00:27.8]} 53... Kf7 {[%clk 0:00:20.4]}
54. Rg7+ {[%clk 0:00:28.5]} 54... Kf8 {[%clk 0:00:21.6]} 55. g5 {[%clk
0:00:29.9]} 55... Rb5 {[%clk 0:00:22.5]} 56. Kg4 {[%clk 0:00:30.9]} 56... Rb4
{[%clk 0:00:23.5]} 57. Kf5 {[%clk 0:00:30.4]} 57... Rb1 {[%clk 0:00:25.4]} 58.
f4 {[%clk 0:00:30.7]} 58... Rb5+ {[%clk 0:00:26.3]} 59. Kg4 {[%clk 0:00:30.3]}
59... Rb6 {[%clk 0:00:28.2]} 60. Nf6 {[%clk 0:00:29.4]} 60... Rb4 {[%clk
0:00:30.1]} 61. Nh5 {[%clk 0:00:29.6]} 61... Rb1 {[%clk 0:00:19.6]} 62. h7
{[%clk 0:00:29.3]} 62... Rg1+ {[%clk 0:00:21.5]} 63. Kf5 {[%clk 0:00:29.8]} 1-0

[Event "*** Titled Tuesday Blitz"]
[Site "Chess.com"]
[Date "2018.12.04"]
[Round "3"]
[White "Zarikovs1999"]
[Black "Squirlolz"]
[Result "1-0"]
[WhiteElo "2358"]
[BlackElo "2466"]
[TimeControl "180+2"]
[EndTime "13:38:43 PST"]
[Termination "Zarikovs1999 won by checkmate"]

1. Nf3 {[%clk 0:03:01.9]} 1... g6 {[%clk 0:02:55.8]} 2. g3 {[%clk 0:03:00.8]}
2... Bg7 {[%clk 0:02:56.7]} 3. Bg2 {[%clk 0:03:02.7]} 3... e5 {[%clk 0:02:57.7]}
4. O-O {[%clk 0:03:04.6]} 4... Ne7 {[%clk 0:02:56]} 5. c4 {[%clk 0:03:03.4]}
5... O-O {[%clk 0:02:56.4]} 6. Nc3 {[%clk 0:03:04.3]} 6... c6 {[%clk 0:02:56.8]}
7. d4 {[%clk 0:03:05]} 7... d6 {[%clk 0:02:55.4]} 8. dxe5 {[%clk 0:03:04.5]}
8... dxe5 {[%clk 0:02:56.7]} 9. Qxd8 {[%clk 0:03:03.1]} 9... Rxd8 {[%clk
0:02:58.6]} 10. Be3 {[%clk 0:02:58.1]} 10... Be6 {[%clk 0:02:57.8]} 11. Rfd1
{[%clk 0:02:54.4]} 11... Nd7 {[%clk 0:02:51.2]} 12. b3 {[%clk 0:02:49.6]} 12...
Nf5 {[%clk 0:02:24.1]} 13. Rac1 {[%clk 0:02:10.1]} 13... Nxe3 {[%clk 0:02:20.4]}
14. fxe3 {[%clk 0:02:02.2]} 14... Nc5 {[%clk 0:02:21.3]} 15. Kf2 {[%clk
0:01:58.5]} 15... a5 {[%clk 0:02:10.2]} 16. Ng5 {[%clk 0:01:50.1]} 16... a4
{[%clk 0:01:27]} 17. Nxe6 {[%clk 0:01:49]} 17... Nxe6 {[%clk 0:01:15.7]} 18. b4
{[%clk 0:01:47.4]} 18... f5 {[%clk 0:01:10.2]} 19. a3 {[%clk 0:01:37.3]} 19...
e4 {[%clk 0:01:07.7]} 20. Nb1 {[%clk 0:01:24.2]} 20... Bb2 {[%clk 0:01:01]} 21.
Rxd8+ {[%clk 0:01:20.5]} 21... Rxd8 {[%clk 0:01:02.9]} 22. Rc2 {[%clk
0:01:19.9]} 22... Be5 {[%clk 0:01:04.5]} 23. Ke1 {[%clk 0:01:16.7]} 23... h5
{[%clk 0:01:00.8]} 24. Rd2 {[%clk 0:01:16.7]} 24... Rxd2 {[%clk 0:00:50.7]} 25.
Kxd2 {[%clk 0:01:18.6]} 25... Kf7 {[%clk 0:00:32.9]} 26. Nc3 {[%clk 0:01:16.8]}
26... Bxc3+ {[%clk 0:00:33.1]} 27. Kxc3 {[%clk 0:01:18.7]} 27... c5 {[%clk
0:00:33.8]} 28. bxc5 {[%clk 0:01:15.9]} 28... Nxc5 {[%clk 0:00:34.9]} 29. Kb4
{[%clk 0:01:16.8]} 29... Nd7 {[%clk 0:00:21.8]} 30. Kxa4 {[%clk 0:01:14.7]}
30... Ne5 {[%clk 0:00:23]} 31. Kb5 {[%clk 0:01:15]} 31... Ng4 {[%clk 0:00:24.2]}
32. c5 {[%clk 0:01:08.6]} 32... Ke6 {[%clk 0:00:25.4]} 33. c6 {[%clk 0:01:00.1]}
33... bxc6+ {[%clk 0:00:24.9]} 34. Kxc6 {[%clk 0:01:02]} 34... Nxe3 {[%clk
0:00:14.3]} 35. a4 {[%clk 0:00:58.7]} 35... Nc4 {[%clk 0:00:09]} 36. Kc5 {[%clk
0:00:54.5]} 36... Na5 {[%clk 0:00:09.2]} 37. h3 {[%clk 0:00:47.9]} 37... Ke5
{[%clk 0:00:08.3]} 38. e3 {[%clk 0:00:44.9]} 38... g5 {[%clk 0:00:09.4]} 39. Kb5
{[%clk 0:00:26]} 39... Nb7 {[%clk 0:00:10.4]} 40. Kb6 {[%clk 0:00:26.1]} 40...
Nd6 {[%clk 0:00:11.7]} 41. Kc5 {[%clk 0:00:26.9]} 41... h4 {[%clk 0:00:09.3]}
42. gxh4 {[%clk 0:00:27.1]} 42... gxh4 {[%clk 0:00:11.2]} 43. Bf1 {[%clk
0:00:27.2]} 43... Nb7+ {[%clk 0:00:09]} 44. Kb6 {[%clk 0:00:27.6]} 44... Nd6
{[%clk 0:00:09.7]} 45. Kc5 {[%clk 0:00:28.9]} 45... Nb7+ {[%clk 0:00:10.7]} 46.
Kb6 {[%clk 0:00:28.4]} 46... Nd6 {[%clk 0:00:11.8]} 47. Kc6 {[%clk 0:00:20.2]}
47... Nc8 {[%clk 0:00:06.4]} 48. Kc7 {[%clk 0:00:17.4]} 48... Na7 {[%clk
0:00:05.2]} 49. a5 {[%clk 0:00:16.6]} 49... f4 {[%clk 0:00:05.7]} 50. exf4+
{[%clk 0:00:16.6]} 50... Kxf4 {[%clk 0:00:07.6]} 51. Kb7 {[%clk 0:00:18.3]}
51... Ke3 {[%clk 0:00:07.3]} 52. Kxa7 {[%clk 0:00:19.3]} 52... Kf2 {[%clk
0:00:08.6]} 53. Bc4 {[%clk 0:00:19.4]} 53... Kg2 {[%clk 0:00:08.7]} 54. Bd5
{[%clk 0:00:19.6]} 54... Kxh3 {[%clk 0:00:09.4]} 55. Bxe4 {[%clk 0:00:20.4]}
55... Kh2 {[%clk 0:00:10.7]} 56. a6 {[%clk 0:00:21.4]} 56... h3 {[%clk 0:00:12]}
57. Kb6 {[%clk 0:00:22.1]} 57... Kg3 {[%clk 0:00:09.5]} 58. a7 {[%clk
0:00:23.1]} 58... h2 {[%clk 0:00:10.9]} 59. a8=Q {[%clk 0:00:23.9]} 59... Kf2
{[%clk 0:00:12.3]} 60. Bh1 {[%clk 0:00:25.2]} 60... Kg1 {[%clk 0:00:13.1]} 61.
Qg2# {[%clk 0:00:26.5]} 1-0

[Event "*** Titled Tuesday Blitz"]
[Site "Chess.com"]
[Date "2018.12.04"]
[Round "3"]
[White "ckgchess"]
[Black "Fighterman91"]
[Result "1/2-1/2"]
[WhiteElo "2586"]
[BlackElo "2613"]
[TimeControl "180+2"]
[EndTime "13:38:44 PST"]
[Termination "Game drawn by repetition"]

1. e4 {[%clk 0:02:37]} 1... c5 {[%clk 0:02:59.8]} 2. Nf3 {[%clk 0:02:37.2]} 2...
d6 {[%clk 0:03:01.2]} 3. d4 {[%clk 0:02:36.1]} 3... cxd4 {[%clk 0:03:03.1]} 4.
Nxd4 {[%clk 0:02:37.9]} 4... Nf6 {[%clk 0:03:04.7]} 5. Nc3 {[%clk 0:02:39.4]}
5... a6 {[%clk 0:03:06.3]} 6. Bg5 {[%clk 0:02:40.6]} 6... e6 {[%clk 0:03:06.7]}
7. f4 {[%clk 0:02:41.4]} 7... h6 {[%clk 0:03:08.2]} 8. Bh4 {[%clk 0:02:42]} 8...
Qb6 {[%clk 0:03:09.8]} 9. a3 {[%clk 0:02:41.6]} 9... Be7 {[%clk 0:03:11.1]} 10.
Bf2 {[%clk 0:02:37.7]} 10... Qc7 {[%clk 0:03:12.7]} 11. Qf3 {[%clk 0:02:32]}
11... Nbd7 {[%clk 0:03:12]} 12. O-O-O {[%clk 0:02:32.7]} 12... b5 {[%clk
0:03:13.1]} 13. g4 {[%clk 0:02:31.8]} 13... Bb7 {[%clk 0:03:12.5]} 14. h4 {[%clk
0:02:29.9]} 14... Nc5 {[%clk 0:03:14.1]} 15. Bd3 {[%clk 0:02:28.4]} 15... h5
{[%clk 0:03:15.7]} 16. g5 {[%clk 0:02:19.7]} 16... Ng4 {[%clk 0:03:17.1]} 17. g6
{[%clk 0:02:21.3]} 17... fxg6 {[%clk 0:03:17]} 18. Rhg1 {[%clk 0:02:13.2]} 18...
O-O-O {[%clk 0:02:30.8]} 19. b4 {[%clk 0:02:07.9]} 19... Nxd3+ {[%clk
0:02:23.7]} 20. Rxd3 {[%clk 0:02:09.8]} 20... Qd7 {[%clk 0:02:18.7]} 21. a4
{[%clk 0:01:44.7]} 21... d5 {[%clk 0:01:35.1]} 22. axb5 {[%clk 0:01:38.1]} 22...
dxe4 {[%clk 0:01:32.5]} 23. Nxe4 {[%clk 0:01:39.1]} 23... Nxf2 {[%clk
0:01:33.4]} 24. Rc3+ {[%clk 0:01:30.4]} 24... Kb8 {[%clk 0:01:34.1]} 25. Nc6+
{[%clk 0:01:23.3]} 25... Bxc6 {[%clk 0:01:09]} 26. bxc6 {[%clk 0:01:25.2]} 26...
Qc7 {[%clk 0:00:50.7]} 27. Qxf2 {[%clk 0:01:15.7]} 27... Bxb4 {[%clk 0:00:19.8]}
28. Rb3 {[%clk 0:01:07.3]} 28... a5 {[%clk 0:00:21.2]} 29. Rg5 {[%clk
0:00:27.9]} 29... Rd5 {[%clk 0:00:19.5]} 30. c3 {[%clk 0:00:22.5]} 30... Qxc6
{[%clk 0:00:21]} 31. Kb2 {[%clk 0:00:21.5]} 31... Rc8 {[%clk 0:00:13.3]} 32.
Rxd5 {[%clk 0:00:05.6]} 32... exd5 {[%clk 0:00:13.9]} 33. Nd2 {[%clk 0:00:07.5]}
33... Ka8 {[%clk 0:00:12.1]} 34. Nb1 {[%clk 0:00:09]} 34... Bc5 {[%clk
0:00:13.4]} 35. Qe2 {[%clk 0:00:10.3]} 35... a4 {[%clk 0:00:14.2]} 36. Rb5
{[%clk 0:00:11.6]} 36... Rb8 {[%clk 0:00:15.5]} 37. Rxb8+ {[%clk 0:00:12.9]}
37... Kxb8 {[%clk 0:00:17.1]} 38. Qe5+ {[%clk 0:00:14.5]} 38... Bd6 {[%clk
0:00:17.5]} 39. Qxg7 {[%clk 0:00:15.9]} 39... Qb5+ {[%clk 0:00:18.5]} 40. Kc1
{[%clk 0:00:15.1]} 40... Bxf4+ {[%clk 0:00:18.9]} 41. Nd2 {[%clk 0:00:13.2]}
41... Bxd2+ {[%clk 0:00:06.7]} 42. Kxd2 {[%clk 0:00:14.3]} 42... Qb2+ {[%clk
0:00:06.5]} 43. Kd3 {[%clk 0:00:15.9]} 43... a3 {[%clk 0:00:07.2]} 44. Qf8+
{[%clk 0:00:15.6]} 44... Kc7 {[%clk 0:00:08.4]} 45. Qe7+ {[%clk 0:00:17]} 45...
Kc6 {[%clk 0:00:09.6]} 46. Qe6+ {[%clk 0:00:18.1]} 46... Kc5 {[%clk 0:00:11.1]}
47. Qe7+ {[%clk 0:00:18.8]} 47... Kb5 {[%clk 0:00:12.7]} 48. Qb7+ {[%clk
0:00:18.9]} 48... Ka4 {[%clk 0:00:13.7]} 49. Qa8+ {[%clk 0:00:18.4]} 49... Kb5
{[%clk 0:00:10.3]} 50. Qb7+ {[%clk 0:00:17.3]} 50... Kc5 {[%clk 0:00:11.1]} 51.
Qc7+ {[%clk 0:00:18.2]} 51... Kb5 {[%clk 0:00:12.6]} 52. Qb7+ {[%clk 0:00:19.3]}
52... Kc5 {[%clk 0:00:12.9]} 53. Qc7+ {[%clk 0:00:17.4]} 53... Kb5 {[%clk
0:00:13.9]} 54. Qb7+ {[%clk 0:00:18.1]} 54... Ka4 {[%clk 0:00:12.9]} 55. Qa8+
{[%clk 0:00:15.6]} 55... Kb5 {[%clk 0:00:14.2]} 56. Qb7+ {[%clk 0:00:14.5]}
1/2-1/2

[Event "*** Titled Tuesday Blitz"]
[Site "Chess.com"]
[Date "2018.12.04"]
[Round "3"]
[White "Pilopa"]
[Black "akretchetov"]
[Result "0-1"]
[WhiteElo "2429"]
[BlackElo "2362"]
[TimeControl "180+2"]
[EndTime "13:38:48 PST"]
[Termination "akretchetov won on time"]

1. d4 {[%clk 0:03:01.9]} 1... Nf6 {[%clk 0:03:00.6]} 2. c4 {[%clk 0:03:02]} 2...
e6 {[%clk 0:03:01.4]} 3. Nf3 {[%clk 0:03:02.1]} 3... d5 {[%clk 0:03:01.9]} 4. g3
{[%clk 0:03:02.9]} 4... Bb4+ {[%clk 0:03:01.1]} 5. Bd2 {[%clk 0:03:03.1]} 5...
Be7 {[%clk 0:03:01.9]} 6. Bg2 {[%clk 0:03:04.4]} 6... O-O {[%clk 0:03:02.5]} 7.
O-O {[%clk 0:03:06]} 7... c6 {[%clk 0:03:03.4]} 8. Qc2 {[%clk 0:03:07.5]} 8...
b6 {[%clk 0:03:03.9]} 9. Bf4 {[%clk 0:03:08.4]} 9... Ba6 {[%clk 0:03:03.9]} 10.
cxd5 {[%clk 0:03:08.2]} 10... cxd5 {[%clk 0:02:55.7]} 11. Rc1 {[%clk 0:03:09]}
11... Bd6 {[%clk 0:02:33.3]} 12. Ne5 {[%clk 0:03:07.8]} 12... Qe7 {[%clk
0:02:26]} 13. Nc3 {[%clk 0:03:01.4]} 13... Rc8 {[%clk 0:02:16.7]} 14. Qa4 {[%clk
0:03:01.2]} 14... Bb7 {[%clk 0:01:59.3]} 15. Nb5 {[%clk 0:02:57.8]} 15... Bxe5
{[%clk 0:01:44.8]} 16. dxe5 {[%clk 0:02:49.5]} 16... Ne8 {[%clk 0:01:34.3]} 17.
Nd6 {[%clk 0:02:42]} 17... Nxd6 {[%clk 0:01:31.7]} 18. exd6 {[%clk 0:02:41.9]}
18... Qd7 {[%clk 0:01:31.8]} 19. Rxc8+ {[%clk 0:02:30.5]} 19... Bxc8 {[%clk
0:01:27.5]} 20. Rc1 {[%clk 0:02:25.7]} 20... Na6 {[%clk 0:01:16.9]} 21. Qc6
{[%clk 0:01:49.1]} 21... Qxc6 {[%clk 0:01:13.8]} 22. Rxc6 {[%clk 0:01:49.7]}
22... Bd7 {[%clk 0:01:14.6]} 23. Rc1 {[%clk 0:01:39.7]} 23... Rc8 {[%clk
0:01:14.6]} 24. Rxc8+ {[%clk 0:01:38.5]} 24... Bxc8 {[%clk 0:01:15.6]} 25. e4
{[%clk 0:01:27.8]} 25... dxe4 {[%clk 0:01:09.6]} 26. Bxe4 {[%clk 0:01:25]} 26...
Nc5 {[%clk 0:01:10]} 27. Bc6 {[%clk 0:01:25.2]} 27... Bd7 {[%clk 0:01:10.8]} 28.
Bf3 {[%clk 0:01:14.8]} 28... Nd3 {[%clk 0:01:02]} 29. Be3 {[%clk 0:01:13.8]}
29... Nxb2 {[%clk 0:00:53.5]} 30. Be2 {[%clk 0:01:12.6]} 30... Na4 {[%clk
0:00:44.7]} 31. Bd4 {[%clk 0:01:13.1]} 31... Nc5 {[%clk 0:00:36.8]} 32. Bxc5
{[%clk 0:01:13.3]} 32... bxc5 {[%clk 0:00:37.5]} 33. f4 {[%clk 0:01:14.7]} 33...
Bc6 {[%clk 0:00:30]} 34. Kf2 {[%clk 0:01:15]} 34... Kf8 {[%clk 0:00:29.7]} 35.
Ke3 {[%clk 0:00:50.8]} 35... Ke8 {[%clk 0:00:30]} 36. Bd3 {[%clk 0:00:46.1]}
36... g6 {[%clk 0:00:26.8]} 37. h4 {[%clk 0:00:15.7]} 37... Kd7 {[%clk
0:00:25.8]} 38. h5 {[%clk 0:00:17.1]} 38... Kxd6 {[%clk 0:00:26.2]} 39. h6
{[%clk 0:00:18.2]} 39... Bd5 {[%clk 0:00:20.3]} 40. a3 {[%clk 0:00:17.8]} 40...
a5 {[%clk 0:00:20.6]} 41. g4 {[%clk 0:00:17.7]} 41... f5 {[%clk 0:00:19]} 42. g5
{[%clk 0:00:14.3]} 42... e5 {[%clk 0:00:18.8]} 43. Bc2 {[%clk 0:00:14.2]} 43...
Be6 {[%clk 0:00:18]} 44. Kf3 {[%clk 0:00:13.1]} 44... c4 {[%clk 0:00:16.7]} 45.
Ke3 {[%clk 0:00:13.9]} 45... Bd5 {[%clk 0:00:14.7]} 46. Bb1 {[%clk 0:00:08.5]}
46... Ke6 {[%clk 0:00:15.2]} 47. Bc2 {[%clk 0:00:08.8]} 47... c3 {[%clk
0:00:15.3]} 48. Ba4 {[%clk 0:00:07]} 48... Be4 {[%clk 0:00:14.5]} 49. Bb3+
{[%clk 0:00:05.7]} 49... Kd6 {[%clk 0:00:14.6]} 50. Bg8 {[%clk 0:00:07.2]} 50...
exf4+ {[%clk 0:00:15.4]} 51. Ke2 {[%clk 0:00:06.9]} 51... f3+ {[%clk 0:00:16.1]}
52. Ke3 {[%clk 0:00:07.1]} 52... f2 {[%clk 0:00:16.4]} 53. Bc4 {[%clk
0:00:02.3]} 53... c2 {[%clk 0:00:16.9]} 0-1

[Event "*** Titled Tuesday Blitz"]
[Site "Chess.com"]
[Date "2018.12.04"]
[Round "3"]
[White "Evgeny81"]
[Black "Rikikits"]
[Result "1-0"]
[WhiteElo "2653"]
[BlackElo "2709"]
[TimeControl "180+2"]
[EndTime "13:38:52 PST"]
[Termination "Evgeny81 won on time"]

1. Nf3 {[%clk 0:03:01.9]} 1... g6 {[%clk 0:03:01.9]} 2. c4 {[%clk 0:03:03]} 2...
Bg7 {[%clk 0:03:02.7]} 3. Nc3 {[%clk 0:03:03.9]} 3... e5 {[%clk 0:03:01.1]} 4.
d4 {[%clk 0:03:03.2]} 4... exd4 {[%clk 0:03:02]} 5. Nxd4 {[%clk 0:03:04.5]} 5...
Nc6 {[%clk 0:03:03]} 6. Nxc6 {[%clk 0:03:04.2]} 6... bxc6 {[%clk 0:03:03.3]} 7.
g3 {[%clk 0:03:04.1]} 7... h5 {[%clk 0:02:59.3]} 8. Bg2 {[%clk 0:03:02.7]} 8...
h4 {[%clk 0:03:00.3]} 9. Bf4 {[%clk 0:02:59.2]} 9... Rb8 {[%clk 0:02:54.4]} 10.
Qd2 {[%clk 0:02:57]} 10... Ne7 {[%clk 0:02:50.1]} 11. Rc1 {[%clk 0:02:46.7]}
11... d6 {[%clk 0:02:47.1]} 12. Bg5 {[%clk 0:02:34.2]} 12... f6 {[%clk 0:02:46]}
13. Be3 {[%clk 0:02:28.5]} 13... Be6 {[%clk 0:02:46.7]} 14. Bxa7 {[%clk
0:02:27.5]} 14... Rb7 {[%clk 0:02:46]} 15. Bd4 {[%clk 0:02:19.7]} 15... Qd7
{[%clk 0:02:46.9]} 16. Ne4 {[%clk 0:02:13.8]} 16... O-O {[%clk 0:02:42.7]} 17.
O-O {[%clk 0:02:00.3]} 17... Bh3 {[%clk 0:02:35.7]} 18. Bc3 {[%clk 0:01:36.6]}
18... Bxg2 {[%clk 0:02:34.7]} 19. Kxg2 {[%clk 0:01:38]} 19... Qe6 {[%clk
0:02:30.6]} 20. f3 {[%clk 0:01:34.5]} 20... hxg3 {[%clk 0:02:18.4]} 21. hxg3
{[%clk 0:01:35.1]} 21... Nf5 {[%clk 0:02:19.9]} 22. g4 {[%clk 0:01:26.1]} 22...
Nh4+ {[%clk 0:01:13]} 23. Kf2 {[%clk 0:01:26.6]} 23... Qe7 {[%clk 0:00:50.9]}
24. Rh1 {[%clk 0:01:18.4]} 24... g5 {[%clk 0:00:48.2]} 25. Ng3 {[%clk
0:01:09.5]} 25... f5 {[%clk 0:00:40.9]} 26. Rxh4 {[%clk 0:00:47.1]} 26... gxh4
{[%clk 0:00:37.8]} 27. Nxf5 {[%clk 0:00:46.8]} 27... Rxf5 {[%clk 0:00:37.7]} 28.
gxf5 {[%clk 0:00:47.1]} 28... Bxc3 {[%clk 0:00:35.4]} 29. Qxc3 {[%clk
0:00:46.8]} 29... Kf7 {[%clk 0:00:31.9]} 30. Qh8 {[%clk 0:00:29.8]} 30... Qf6
{[%clk 0:00:28.8]} 31. Qh7+ {[%clk 0:00:28.2]} 31... Ke8 {[%clk 0:00:29.2]} 32.
Rc3 {[%clk 0:00:26.8]} 32... Rxb2 {[%clk 0:00:20.6]} 33. Re3+ {[%clk 0:00:26.3]}
33... Kf8 {[%clk 0:00:22.1]} 34. Re6 {[%clk 0:00:15.5]} 34... Qd4+ {[%clk
0:00:23]} 35. Kg2 {[%clk 0:00:16.9]} 35... Qg7+ {[%clk 0:00:24.7]} 36. Qxg7+
{[%clk 0:00:16.7]} 36... Kxg7 {[%clk 0:00:26.6]} 37. Kh3 {[%clk 0:00:12.3]}
37... Rxa2 {[%clk 0:00:26.8]} 38. e4 {[%clk 0:00:11.8]} 38... Kf7 {[%clk
0:00:25.3]} 39. Kxh4 {[%clk 0:00:11.9]} 39... Rc2 {[%clk 0:00:26.2]} 40. Rh6
{[%clk 0:00:11.8]} 40... Rxc4 {[%clk 0:00:26.7]} 41. Kg5 {[%clk 0:00:11.5]}
41... Rc1 {[%clk 0:00:26.7]} 42. Rh7+ {[%clk 0:00:12.4]} 42... Ke8 {[%clk
0:00:28.4]} 43. Rxc7 {[%clk 0:00:14]} 43... Kd8 {[%clk 0:00:29.9]} 44. Ra7
{[%clk 0:00:14.7]} 44... c5 {[%clk 0:00:30.4]} 45. f6 {[%clk 0:00:15.9]} 45...
Rg1+ {[%clk 0:00:31.9]} 46. Kf5 {[%clk 0:00:16.8]} 46... Rf1 {[%clk 0:00:27.7]}
47. f4 {[%clk 0:00:16.3]} 47... Ke8 {[%clk 0:00:29.1]} 48. Ke6 {[%clk
0:00:16.9]} 48... Kd8 {[%clk 0:00:29.3]} 49. f7 {[%clk 0:00:13.8]} 49... Rxf4
{[%clk 0:00:29.6]} 50. Ra8+ {[%clk 0:00:14.9]} 50... Kc7 {[%clk 0:00:30.4]} 51.
f8=Q {[%clk 0:00:15.9]} 51... Rxe4+ {[%clk 0:00:31.3]} 52. Kf5 {[%clk
0:00:14.4]} 52... Re5+ {[%clk 0:00:32.1]} 53. Kf4 {[%clk 0:00:14.9]} 53... Rd5
{[%clk 0:00:32.3]} 54. Qc8+ {[%clk 0:00:14.2]} 1-0